Cogmind - Beta 12 @@@ ROGUE MODE // 2023.08.04 @ 16:30:41 Player: Roxy Result: Destroyed by H-55 Commando with Assault Rifle Performance ------------- Evolutions (2) 1000 Regions Visited (4) 800 Robots Destroyed (44) 220 Value Destroyed (1266) 1266 Prototype IDs (4) 80 Alien Tech Used (0) 0 Bonus (22) 22 TOTAL SCORE: 3388 Bonus ------- High Alert Combat Kills 22 Cogmind --------- Core Integrity 0/550 Matter 246/300 Energy 99/100 System Corruption 1% Temperature Cool (0) Movement Core (100) Ox1 Location -8/Materials Parts ------- > --- POWER (1) -------- (None) > --- PROPULSION (4) --- (None) > --- UTILITY (3) ------ Small Storage Unit > --- WEAPON (3) ------- (None) > --- INVENTORY (8) ---- Improved Terrain Scan Processor EM Pulse Cannon Peak State ------------ > --- POWER ------------ Nuclear Core > --- PROPULSION ------- Improved Aluminum Leg Improved Aluminum Leg Titanium Leg Titanium Leg > --- UTILITY ---------- Small Storage Unit Machine Analyzer Signal Interpreter > --- WEAPON ----------- Improved EM Shotgun Heavy Laser Heavy Laser > --- INVENTORY -------- Light Ion Engine Improved Ion Engine Aluminum Leg Improved Terrain Scan Processor EM Shotgun Shock Rifle [Rating: 30] Favorites ----------- Power Ion Engine Engine Ion Engine Power Core Nuclear Core Propulsion Improved Aluminum Leg Leg Improved Aluminum Leg Utility Small Storage Unit Storage Small Storage Unit Processor Signal Interpreter Weapon Light Assault Rifle Energy Gun Heavy Laser Energy Cannon Light EM Pulse Cannon Ballistic Gun Light Assault Rifle Build | -11 -10 -9 -9 -8 ------- Run | Jun Mat Mat Sto Mat Slots Evolved 4 | . . 2 . 2 Power . | . . . . . Propulsion 2 | . . 2 . . Utility 1 | . . . . 1 Weapon 1 | . . . . 1 Parts Attached 42 | 6 1 6 12 17 Power 8 | 1 . . 4 3 Engine 5 | 1 . . 2 2 Core 3 | . . . 2 1 Reactor . | . . . . . Propulsion 16 | 2 . 5 4 5 Treads . | . . . . . Leg 16 | 2 . 5 4 5 Wheel . | . . . . . Hover . | . . . . . Flight . | . . . . . Utility 4 | 1 1 . . 2 Device . | . . . . . Storage 1 | 1 . . . . Processor 3 | . 1 . . 2 Hackware . | . . . . . Protection . | . . . . . Artifact . | . . . . . Weapon 14 | 2 . 1 4 7 Energy Gun 6 | 1 . . . 5 Energy Cannon 1 | . . . . 1 Ballistic Gun 7 | 1 . 1 4 1 Ballistic Cannon . | . . . . . Launcher . | . . . . . Special Weapon . | . . . . . Impact Weapon . | . . . . . Slashing Weapon . | . . . . . Piercing Weapon . | . . . . . Special Melee Weapon . | . . . . . Unidentified Prototypes 1 | . . . . 1 Corrupted Parts 1 | . . . . 1 System Corruption 1 | . . . . 1 Parts Lost 29 | . . 1 7 21 Power 6 | . . . 3 3 Propulsion 10 | . . . 3 7 Utility 2 | . . . . 2 Weapon 11 | . . 1 1 9 Highest Loss Streak 10 | . . 1 2 10 To Critical Strikes 1 | . . . . 1 Average Slot Usage (%) 89 | . 96 96 93 81 Engine 7 | . 14 11 6 4 Core 2 | . . . 2 3 Leg 33 | . 28 40 39 27 Storage 10 | . 14 11 11 9 Processor 12 | . 10 11 11 15 Energy Gun 5 | . 14 7 . 9 Energy Cannon 1 | . . . . 4 Ballistic Gun 15 | . 14 14 22 7 Naked Turns . | . . . . . Heaviest Build 23 | 13 13 13 14 23 Greatest Support 60 | 20 20 52 52 60 Greatest Overweight (x) 1 | . . . . 1 Average Overweight (x) . | . . . . . Largest Inventory Capacity 8 | 8 8 8 8 8 Average Capacity 7 | 6 8 8 8 8 Most Carried 8 | 5 8 8 8 8 Average Carried 6 | 2 4 7 6 6 Final Capacity 8 | 8 8 8 8 8 Final Carried 8 | 2 8 7 6 2 Class Distribution -------------------- 62% | Mutant 21% | Scavenger-Mutant 11% | Skirmisher 3% | Scavenger-Gunner Dominant Class ---------------- Mutant | -10/Materials Mutant | -9/Materials Scavenger-Mutant | -9/Storage Mutant | -8/Materials Resources | -11 -10 -9 -9 -8 ----------- Run | Jun Mat Mat Sto Mat Matter Collected 798 | 198 87 67 220 226 Remotely . | . . . . . Salvage Created 1667 | . 201 78 647 741 Parts 100 | . 8 12 44 36 Haulers Intercepted . | . . . . . Recyclers Shooed 2 | . . 1 1 . Parts Field Recycled . | . . . . . Retrieved Matter . | . . . . . Parts Self-Destructed . | . . . . . Prevented . | . . . . . Kills | -11 -10 -9 -9 -8 ------- Run | Jun Mat Mat Sto Mat Combat Hostiles Destroyed 38 | . 4 3 17 14 Guns 33 | . 3 3 17 10 Cannons 1 | . . . . 1 AOE 4 | . 1 . . 3 Classes Destroyed 7 | . 2 2 1 2 Worker 3 | . 1 . 1 1 Recycler 1 | . . . . 1 Watcher 2 | . . . 1 1 Swarmer 12 | . . 2 7 3 Grunt 13 | . 4 . 4 5 Brawler 1 | . . . . 1 Sentry 12 | . . 1 6 5 Best Kill Streak 8 | . 3 2 6 8 Combat Bots Only 6 | . 2 2 5 6 Max Kills in Single Turn 3 | . 1 1 1 3 Gunslinging . | . . . . . Exploded 2 | . 1 . . 2 Melee . | . . . . . Uniques/NPCs Destroyed . | . . . . . Combat | -11 -10 -9 -9 -8 -------- Run | Jun Mat Mat Sto Mat Damage Taken 3394 | . 235 324 925 1910 Core 816 | . 73 63 128 552 Absorbed by Shields . | . . . . . Regen/Repaired (Parts) 112 | . . . 112 . Core Remaining (%) 74 | 100 70 . 52 . Volleys Fired 136 | . 15 12 66 43 Largest 3 | . 2 2 2 3 Hottest 183 | . 60 60 46 183 Shots Fired 270 | . 30 24 132 84 Gun 263 | . 30 24 132 77 Cannon 7 | . . . . 7 Launcher . | . . . . . Special . | . . . . . Kinetic 203 | . 15 23 132 33 Thermal 36 | . . . . 36 Explosive . | . . . . . Electromagnetic 31 | . 15 1 . 15 Robot Hit Streak 17 | . 3 5 17 8 Robot Miss Streak 7 | . 4 4 5 7 Penetration Max . | . . . . . Secondary Targets 9 | . 2 1 4 2 Max Gunslinging Chain 1 | . 1 1 1 1 Shots Hit Robots 174 | . 17 13 92 52 Core Hits 81 | . 8 9 35 29 Critical Kills 1 | . . . . 1 Critical Parts Destroyed 1 | . . . 1 . Critical Strikes 2 | . . . 1 1 Destroy 2 | . . . 1 1 Melee Attacks . | . . . . . Impact . | . . . . . Slashing . | . . . . . Piercing . | . . . . . Sneak Attacks . | . . . . . Combat Hostiles . | . . . . . Follow-up Attacks . | . . . . . Damage Inflicted 2553 | . 285 148 948 1172 Guns 2110 | . 216 147 948 799 Cannons 133 | . . . . 133 Explosions 309 | . 69 . . 240 Melee . | . . . . . Ramming 1 | . . 1 . . Kinetic 1550 | . 65 147 948 390 Thermal 614 | . 69 . . 545 Explosive . | . . . . . Electromagnetic 388 | . 151 . . 237 Impact . | . . . . . Slashing . | . . . . . Piercing . | . . . . . Highest Corruption 1 | . . . . 1 Average Corruption 1 | . . . . 1 Corruption Purged . | . . . . . Corruption Blocked . | . . . . . Effects 2 | . . . . 2 Message Errors 1 | . . . . 1 Data Loss (major) 1 | . . . . 1 Overload Shots . | . . . . . Overflow Damage 23 | . . . . 23 Projectiles . | . . . . . Explosions 23 | . . . . 23 Melee . | . . . . . Knockbacks . | . . . . . Impact . | . . . . . Kinetic . | . . . . . Secondary . | . . . . . Self-Inflicted Damage 8 | . 8 . . . Shots 1 | . 1 . . . Rammed . | . . . . . Targets Rammed 1 | . . 1 . . Kicked 1 | . . 1 . . Crushed . | . . . . . Highest Temperature 486 | . 133 24 14 486 Average Temperature 98 | . 53 9 6 138 Received Heat Transfer 1149 | . 123 108 297 621 Effects 6 | . . . . 6 Shutdowns 1 | . . . . 1 Energy Bleed 2 | . . . . 2 Interference 2 | . . . . 2 Damage (major) 1 | . . . . 1 Siege Activations . | . . . . . Robots Corrupted . | . . . . . Combat Hostiles . | . . . . . Parts Fried 1 | . 1 . . . Impact Corruptions . | . . . . . Robots Melted . | . . . . . Combat Hostiles . | . . . . . Parts Melted 1 | . . . . 1 Heat Transferred 842 | . 50 . . 792 Parts Sabotaged . | . . . . . Parts Stolen . | . . . . . Parts Stripped . | . . . . . Power Chain Reactions 4 | . 1 . . 3 Missiles Intercepted . | . . . . . Alert | -11 -10 -9 -9 -8 ------- Run | Jun Mat Mat Sto Mat Peak Influence 440 | . 122 151 440 347 Initial 156 | . . 51 63 156 Average 208 | . 41 68 280 236 Maximum Alert Level 2 | . . . 2 1 Low Security (%) 38 | 100 100 100 16 22 Level 1 58 | . . . 76 77 Level 2 3 | . . . 7 . Level 3 . | . . . . . Level 4 . | . . . . . Level 5 . | . . . . . High Security . | . . . . . Max Security . | . . . . . Squads Dispatched 8 | . 2 2 1 3 Investigation 2 | . 1 . . 1 Extermination . | . . . . . Reinforcement 6 | . 1 2 1 2 Assault . | . . . . . Garrison . | . . . . . Intercept . | . . . . . Searches Triggered . | . . . . . Construction Impeded 1 | . . 1 . . Haulers Reinforced . | . . . . . Active Scanning Responses . | . . . . . Cargo Convoy Interrupts . | . . . . . Stealth | -11 -10 -9 -9 -8 --------- Run | Jun Mat Mat Sto Mat Distress Signals 3 | . . 1 1 1 Communications Jammed . | . . . . . Distress Signals . | . . . . . Times Spotted 65 | . 6 10 22 27 Peak Tracking Total 10 | . 2 6 6 10 Tactical Retreats 2 | . . . 1 1 Traps | -11 -10 -9 -9 -8 ------- Run | Jun Mat Mat Sto Mat Traps Triggered 2 | . 1 . . 1 Indirectly . | . . . . . Trap Hack Attempts . | . . . . . Triggered . | . . . . . Disarmed . | . . . . . Reprogrammed . | . . . . . Reused . | . . . . . Traps Extracted . | . . . . . Installed . | . . . . . Triggered . | . . . . . Machines | -11 -10 -9 -9 -8 ---------- Run | Jun Mat Mat Sto Mat Machines Disabled . | . . . . . Max in Single Turn . | . . . . . Machines Repaired . | . . . . . Machines Sabotaged . | . . . . . Overloaded Fab Kills . | . . . . . Hacking | -11 -10 -9 -9 -8 --------- Run | Jun Mat Mat Sto Mat Machines Accessed 6 | . 1 . 4 1 Terminals 4 | . 1 . 2 1 Fabricators . | . . . . . Repair Stations 2 | . . . 2 . Recycling Units . | . . . . . Scanalyzers . | . . . . . Garrison Access . | . . . . . Total Hacks 8 | . 1 . 6 1 Successful 8 | . 1 . 6 1 Failed . | . . . . . Catastrophic . | . . . . . Database Lockouts . | . . . . . Manual . | . . . . . Terminals 4 | . 1 . 2 1 Fabricators . | . . . . . Repair Stations 4 | . . . 4 . Recycling Units . | . . . . . Scanalyzers . | . . . . . Garrison Access . | . . . . . Terminal Hacks 4 | . 1 . 2 1 Robot Analysis 1 | . 1 . . . Prototype ID Bank 1 | . . . . 1 Zone Layout 2 | . . . 2 . Fabricator Hacks . | . . . . . Repair Station Hacks 4 | . . . 4 . Scan Component 2 | . . . 2 . Repair 2 | . . . 2 . Recycling Unit Hacks . | . . . . . Scanalyzer . | . . . . . Garrison Access Hacks . | . . . . . Unauthorized Hacks . | . . . . . Terminals . | . . . . . Fabricators . | . . . . . Repair Stations . | . . . . . Recycling Units . | . . . . . Scanalyzers . | . . . . . Garrison Access . | . . . . . Data Cores Recovered . | . . . . . Used . | . . . . . Hacking Detections 4 | . 1 . 2 1 Full Trace Events . | . . . . . Feedback Events . | . . . . . Feedback Blocked . | . . . . . Robot Schematics Acquired . | . . . . . Robots Built . | . . . . . Authchips . | . . . . . Time . | . . . . . Total Robot Build Rating . | . . . . . Part Schematics Acquired . | . . . . . Parts Built . | . . . . . Authchips . | . . . . . Time . | . . . . . Total Part Build Rating . | . . . . . Parts Repaired 2 | . . . 2 . Time 70 | . . . 70 . Parts Recycled . | . . . . . Recycled Matter . | . . . . . Retrieved Matter . | . . . . . Retrieved Components . | . . . . . Parts Scanalyzed . | . . . . . Part Schematics Acquired . | . . . . . Parts Damaged . | . . . . . Bothacking | -11 -10 -9 -9 -8 ------------ Run | Jun Mat Mat Sto Mat Used RIF Installer . | . . . . . Robots Hacked . | . . . . . Non-combat . | . . . . . Combat . | . . . . . Robot Hacks Applied . | . . . . . Relay Couplers Released . | . . . . . Fabnet Peak Effective % . | . . . . . Robots Rewired . | . . . . . Allies Hacked . | . . . . . Hacks Repelled . | . . . . . Allies | -11 -10 -9 -9 -8 -------- Run | Jun Mat Mat Sto Mat Total Allies . | . . . . . Largest Group . | . . . . . Highest-Rated Group . | . . . . . Highest-Rated Ally . | . . . . . Total Orders . | . . . . . Ally Attacks . | . . . . . Total Damage . | . . . . . Kills . | . . . . . Allies Corrupted . | . . . . . Allies Melted . | . . . . . Intel | -11 -10 -9 -9 -8 ------- Run | Jun Mat Mat Sto Mat Robot Analysis Total 1 | . 1 . . . Derelict Logs Recovered . | . . . . . Drone Launches . | . . . . . Drone Recoveries . | . . . . . Exploration | -11 -10 -9 -9 -8 ------------- Run | Jun Mat Mat Sto Mat Turns Passed 1866 | 75 231 139 783 638 Spaces Moved 1075 | 61 141 73 408 392 Core 37 | 20 . . . 17 Treads . | . . . . . Legs 1038 | 41 141 73 408 375 Wheels . | . . . . . Hover . | . . . . . Flight . | . . . . . Fastest Speed 50 | 50 120 120 120 100 Average Speed 120 | 97 120 120 120 123 Slowest Speed 200 | 120 120 120 120 200 Overloaded Moves . | . . . . . Propulsion Burnouts . | . . . . . Robots Hopped . | . . . . . Cave-ins Triggered . | . . . . . Exploration Rate (%) 29 | 4 31 12 56 45 Regions Visited 4 Branch Regions 1 Pre-discovered Areas . | . . . . . Known Exits Taken 3 | . 1 1 1 . Unknown Exits Taken 1 | 1 . . . . Scrap Searched . | . . . . . Spaces Dug . | . . . . . Terrain Destroyed 7 | . 2 . . 5 Melee . | . . . . . Projectile . | . . . . . AOE 7 | . 2 . . 5 Terrain Rammed . | . . . . . Walls Destroyed . | . . . . . Machines Disabled . | . . . . . Actions | -11 -10 -9 -9 -8 --------- Run | Jun Mat Mat Sto Mat Total 1423 | 77 176 106 590 474 Wait 128 | 3 13 11 94 7 Move 1071 | 60 140 72 407 392 Hop . | . . . . . Pick Up 36 | 8 7 1 8 12 Fast Attach 1 | . . 1 . . Attach 31 | 6 1 2 9 13 Detach . | . . . . . Swap 10 | . . 3 3 4 Drop 9 | . . 3 3 3 Fire 136 | . 15 12 66 43 Melee . | . . . . . Ram . | . . . . . Kick 1 | . . 1 . . Crush . | . . . . . Escape Stasis . | . . . . . Rewire . | . . . . . Trap . | . . . . . Miscellaneous . | . . . . . Route ------- -11/Junkyard -10/Materials -9/Materials (discovered 2 exits: *Min / *Sto) -9/Storage -8/Materials History --------- Turn | Location | Event 7 | -11/Junkyard | Discovered new exit (range 15) 76 | -11/Junkyard | Entered Materials 274 | -10/Materials | Discovered new exit (range 15) 306 | -10/Materials | Identified exit to Materials 307 | -10/Materials | Entered another Materials area 307 | -9/Materials | Evolved 2 slots: Propulsion x2 308 | -9/Materials | Discovered new exit (range 7) 317 | -9/Materials | Identified exit to Mines 328 | -9/Materials | Build established: Mutant 397 | -9/Materials | Discovered new exit (range 14) 445 | -9/Materials | Identified exit to Storage 446 | -9/Materials | Entered Storage 631 | -9/Storage | Repaired Lgt. Nuclear Core 868 | -9/Storage | Repaired Imp. Aluminum Leg 1135 | -9/Storage | Build established: Scavenger-Mutant 1194 | -9/Storage | Discovered new exit (range 15) 1228 | -9/Storage | Identified exit to Materials 1229 | -9/Storage | Entered Materials 1229 | -8/Materials | Evolved 2 slots: Utility x1, Weapon x1 1807 | -8/Materials | Lost 10 parts (2p4n1u3w) 1810 | -8/Materials | Core integrity fell below 50% 1834 | -8/Materials | Core integrity fell below 20% 1859 | -8/Materials | Lost 7 parts (1p2n1u3w) 1867 | -8/Materials | Destroyed by H-55 Commando with Assault Rifle Last Messages --------------- K-01 Serf collects debris. Slug penetrates X-62 Marksman. X-62 Marksman destroyed. Imp. Ion Engine destroyed. Critical hit (Burn: +37). Hvy. Laser destroyed. K-01 Serf collects debris. Titanium Leg destroyed. System corrupted: Substantial component data lost. Acquired Minigun. Acquired EM Pulse Cannon. Critical hit (Burn: +37). G-47 Trooper destroyed. K-01 Serf collects debris. G-47 Trooper destroyed. K-01 Serf collects debris. G-47 Trooper destroyed. Penetrated by Slug. K-01 Serf collects debris. Minigun destroyed. Map ----- +----------------------------------------------------+ | ?????????????????? #?????????????## ##?????#?? | | ???????????????????# #??????????????# #???? #?? | | ???????????????????# ################ #?"" #?? | | ???????????????????# # # # # "T #?? | | ???????????????????# + """ "" # # + "" #?? | | ???????????????????# # """ T" # # # #?? | | ???????????????????# *[# """ "" # # #?? #?? | | ???????????????????# [%# / + #????###?? | | ???????????????????# !# # # #????????? | | ???????????????????# # ! # # #????????? | | ???????????????????# # # # #????????? | | ???????????????????# ########### # #????????? | | ???????????????????# #?????????###### #????????? | | ???????????????????# #??????????????# #????????? | | ???????????????????# #??????????????# #????????? | | ???????????????????# #??????????????? ?????????? | | ???????????????????# #??????????????? ?????????? | | ???????????????????# #??????????????? ?????????? | | ???????????????????# #??#######?????? ?????????? | | ???????????????#+### #### ####### ####?????? | | ???????? ????? | | ???????? ????? | | ???????? =% ????? | | ????????######### ####### ##########???????? | | ????????????????# ???######x#######????????????? | | ????????????????# ???#]@!=hkY #????????????? | | ????????????????# ???#] %!g #????????????? | | ?????????????T??# ????#] =%! #????????????? | | ????????????????# ????# #????????????? | | ???????????"""??# ????# #????????????? | | ???????????"""?? ??????##############????????????? | | ???????????"""???????????????????????????????????? | | ?????????????????????????????????????????????????? | | ???????????"""???????????????????????????????????? | | ???????????"""???????????????????????????????????? | | ???????????"""???????????????????????????????????? | | ?????????????????????????????????????????????????? | | ?????????????????????????????????????????????????? | | ?????????????????????????????????????????????????? | | ?????????????????????????????????????????????????? | | ?????????????????????????????????????????????????? | | ?????????????????????????????????????????????????? | | ?????????????????????????????????????????????????? | | ?????????????????????????????????????????????????? | | ?????????????????????????????????????????????????? | | ?????????????????????????????????????????????????? | | ?????????????????????????????????????????????????? | | ?????????????????????????????????????????????????? | | ?????????????????????????????????????????????????? | | ?????????????????????????????????????????????????? | +----------------------------------------------------+ Best States ------------- Heat Dissipation 31 Energy Generation 14 Energy Capacity 265 Matter Stores 300 Matter Capacity 300 Sight Range 16 Terrain Scan Density 10 Evasion (%) 55 Targeting Accuracy 5 Item Schematics ----------------- None Robot Schematics ------------------ None Fabricated ------------ Nothing Alien Tech Used ----------------- None Achievements -------------- None Challenges ------------ None Game ------ Seed GyrokineticFocalEngine Manual? 0 Play Time 00:25:31 Cumulative 5.8 hours Start 2023.08.04 @ 16:07:15 End 2023.08.04 @ 16:30:41 Sessions 1 Manual Loads 0 Difficulty Rogue Special Mode None Game No. 10 Rogue 10 Adventurer 0 Explorer 0 Win Type - Total 0 Types 0/0/0/0/0/0/0/0/0 Lore% 9 Gallery% 10 Achievement% 10 Wizard Run 0 Options --------- ASCII 0 Keyboard 0 Movement Mouse Keybinds 0 Fullscreen 1 Font 18/SmallcapsGlow Map View 76x50 Tactical HUD 0 Map Filters NONE Filters NONE Steam 1 RUN: bda0d009-0f98-4a3a-bd39-776a97aced1b